fUST/lending_fUST_20240921
["ID","MTS","AMOUNT","RATE_DAILY","PERIOD"]
[338688052,1726873853440,-442.910501,0.00015478,2]
[338688053,1726873853450,-151.0,0.00015478,2]
[338688054,1726873853460,-500.0,0.00015478,2]
[338688055,1726873853469,-500.0,0.00015478,2]
[338688056,1726873853478,-500.0,0.00015478,2]
[338688057,1726873853486,-799.94,0.00015478,2]
[338688058,1726873853495,-500.0,0.00015478,2]
[338688059,1726873853504,-500.0,0.00015478,2]
[338688060,1726873853513,-200.0,0.00015478,2]
[338688061,1726873853522,-500.0,0.00015478,2]
[338688062,1726873853531,-786.54,0.00015478,2]
[338688063,1726873853540,-500.0,0.00015479,2]
[338688064,1726873853549,-500.0,0.00015479,2]
[338688065,1726873853557,-500.0,0.00015479,2]
[338688066,1726873853567,-500.0,0.00015479,2]
[338688067,1726873853576,-500.0,0.00015479,2]
[338688068,1726873853584,-546.66461838,0.00015479,2]
[338688069,1726873853593,-500.0,0.00015479,2]
[338688070,1726873853602,-500.0,0.00015479,2]
[338688071,1726873853611,-926.63,0.00015479,2]
[338688072,1726873853620,-500.0,0.00015479,2]
[338688073,1726873853629,-500.0,0.00015479,2]
[338688074,1726873853638,-650.02,0.00015479,2]
[338688075,1726873853647,-591.58,0.00015479,2]
[338688076,1726873853656,-500.0,0.00015479,2]
[338688077,1726873853665,-627.74,0.00015479,2]
[338688078,1726873853674,-500.0,0.00015479,2]
[338688079,1726873853685,-504.08,0.00015479,2]
[338688080,1726873853694,-643.87,0.00015479,2]
[338688081,1726873853703,-500.0,0.00015479,2]
[338688082,1726873853713,-500.0,0.00015479,2]
[338688083,1726873853723,-500.0,0.00015479,2]
[338688084,1726873853733,-500.0,0.00015479,2]
[338688085,1726873853742,-500.0,0.00015479,2]
[338688086,1726873853752,-500.0,0.00015479,2]
[338688087,1726873853762,-500.0,0.00015479,2]
[338688088,1726873853772,-603.8,0.00015479,2]
[338688089,1726873853782,-500.0,0.00015479,2]
[338688090,1726873853791,-166.74762858,0.00015479,2]
[338688091,1726873853802,-500.0,0.00015479,2]
[338688092,1726873853812,-500.0,0.00015479,2]
[338688093,1726873853824,-500.0,0.00015479,2]
[338688094,1726873853836,-500.0,0.00015479,2]
[338688095,1726873853845,-500.0,0.00015479,2]
[338688096,1726873853855,-500.0,0.00015479,2]
[338688097,1726873853865,-559.57,0.00015479,2]
[338688098,1726873853876,-500.0,0.00015479,2]
[338688099,1726873853886,-500.0,0.00015479,2]
[338688100,1726873853895,-500.0,0.00015479,2]
[338688101,1726873853905,-151.0,0.00015479,2]
[338688102,1726873853915,-297.758002,0.00015479,2]
[338688103,1726873853925,-297.758002,0.00015479,2]
[338688104,1726873853937,-422.137067,0.00015479,2]
[338688105,1726873853947,-422.137067,0.00015479,2]
[338688106,1726873853957,-500.0,0.00015479,2]
[338688107,1726873853967,-500.0,0.00015479,2]
[338688108,1726873853976,-500.0,0.00015479,2]
[338688109,1726873853987,-151.0,0.00015479,2]
[338688110,1726873853997,-151.0,0.00015479,2]
[338688111,1726873854008,-184.113147,0.00015479,2]
[338688112,1726873854020,-184.113147,0.00015479,2]
[338688113,1726873854031,-288.2482218,0.00015481,2]
[338688114,1726873854041,-500.0,0.00015481,2]
[338688115,1726873854051,-240.046917,0.00015514,2]
[338688116,1726873854061,-240.046912,0.00015514,2]
[338688117,1726873854070,-151.0,0.00015514,2]
[338688118,1726873854080,-153.393163,0.00015527,2]
[338688119,1726873854091,-151.0,0.00015528,2]
[338688120,1726873854101,-151.0,0.00015528,2]
[338688121,1726873854111,-248.82804,0.00015528,2]
[338688122,1726873854122,-248.82804,0.00015528,2]
[338688123,1726873854133,-151.0,0.00015528,2]
[338688124,1726873854141,-151.0,0.00015528,2]
[338688125,1726873854152,-151.0,0.00015528,2]
[338688126,1726873854163,-442.910501,0.00015528,2]
[338688127,1726873854172,-442.910501,0.00015528,2]
[338688128,1726873854181,-151.0,0.00015528,2]
[338688129,1726873854190,-151.0,0.00015528,2]
[338688130,1726873854201,-151.0,0.00015528,2]
[338688131,1726873854210,-500.0,0.00015547,2]
[338688132,1726873854219,-540.117249,0.00015548,2]
[338688133,1726873854231,-500.0,0.00015555,2]
[338688134,1726873854240,-500.0,0.00015555,2]
[338688135,1726873854249,-309.6165185,0.00015588,2]
[338688136,1726873854258,-1000.0,0.00015668,2]
[338688137,1726873854267,-151.0,0.00015668,2]
[338688138,1726873854277,-430.520216,0.00015668,2]
[338688139,1726873854287,-430.520216,0.00015668,2]
[338688140,1726873854296,-392.037497,0.00015668,2]
[338688141,1726873854305,-392.037497,0.00015668,2]
[338688142,1726873854314,-1000.0,0.00015692,2]
[338688143,1726873854323,-420.0,0.00015726,2]
[338688144,1726873854333,-951.123998,0.00015733,2]
[338688145,1726873854342,-951.123998,0.00015733,2]
[338688146,1726873854351,-151.0,0.00015733,2]
[338688147,1726873854359,-151.0,0.00015733,2]
[338688148,1726873854369,-500.0,0.00015741,2]
[338688149,1726873854378,-1342.17,0.00015741,2]
[338688150,1726873854388,-500.0,0.00015741,2]
[338688151,1726873854396,-833.02,0.00015741,2]
[338688152,1726873854405,-500.0,0.00015742,2]
[338688153,1726873854415,-626.25,0.00015742,2]
[338688154,1726873854424,-500.0,0.00015742,2]
[338688155,1726873854432,-500.0,0.00015742,2]
[338688156,1726873854442,-500.0,0.00015742,2]
[338688157,1726873854451,-500.0,0.00015742,2]
[338688158,1726873854460,-500.0,0.00015742,2]
[338688159,1726873854468,-500.0,0.00015742,2]
[338688160,1726873854477,-500.0,0.00015742,2]
[338688161,1726873854487,-500.0,0.00015742,2]
[338688162,1726873854496,-500.0,0.00015742,2]
[338688163,1726873854505,-500.0,0.00015742,2]
[338688164,1726873854514,-500.0,0.00015742,2]
[338688165,1726873854523,-500.0,0.00015742,2]
[338688166,1726873854531,-893.7,0.00015742,2]
[338688167,1726873854540,-500.0,0.00015742,2]
[338688168,1726873854549,-500.0,0.00015742,2]
[338688169,1726873854559,-500.0,0.00015742,2]
[338688170,1726873854569,-500.0,0.00015742,2]
[338688171,1726873854578,-500.0,0.00015742,2]
[338688172,1726873854589,-500.0,0.00015742,2]
[338688173,1726873854599,-378.60538404,0.00015742,2]
[338688174,1726873854608,-500.0,0.00015742,2]
[338688175,1726873854617,-500.0,0.00015742,2]
[338688176,1726873854627,-500.0,0.00015742,2]
[338688177,1726873854640,-500.0,0.00015742,2]
[338688178,1726873854649,-18728.24,0.00015742,2]
[338688179,1726873854658,-3195.2,0.00015742,2]
[338688180,1726873854667,-574.76309476,0.00015742,2]
[338688181,1726873854676,-500.0,0.00015742,2]
[338688182,1726873854685,-500.0,0.00015742,2]
[338688183,1726873854694,-500.0,0.00015742,2]
[338688184,1726873854704,-500.0,0.00015742,2]
[338688185,1726873854714,-500.0,0.00015742,2]
[338688186,1726873854725,-500.0,0.00015742,2]
[338688187,1726873854851,-500.0,0.00015742,2]
[338688188,1726873854862,-626.3,0.00015742,2]
[338688189,1726873854872,-500.0,0.00015742,2]
[338688190,1726873854883,-500.0,0.00015742,2]
[338688191,1726873854895,-500.0,0.00015742,2]
[338688192,1726873854905,-500.0,0.00015742,2]
[338688193,1726873854915,-500.0,0.00015742,2]
[338688194,1726873854924,-500.0,0.00015742,2]
[338688195,1726873854936,-500.0,0.00015742,2]
[338688196,1726873854947,-500.0,0.00015742,2]
[338688197,1726873854958,-500.0,0.00015742,2]
[338688198,1726873854967,-151.0,0.00015743,2]
[338688199,1726873854976,-248.82804,0.00015743,2]
[338688200,1726873854985,-248.82804,0.00015743,2]
[338688201,1726873854994,-151.0,0.00015743,2]
[338688202,1726873855003,-151.0,0.00015743,2]
[338688203,1726873855012,-151.0,0.00015743,2]
[338688204,1726873855021,-501.78540231,0.00015752,2]
[338688205,1726873855031,-500.0,0.00015752,2]
[338688206,1726873855040,-500.0,0.00015752,2]
[338688207,1726873855049,-799.94,0.00015752,2]
[338688208,1726873855058,-185.45787541,0.00015752,2]
[338688209,1726873855067,-500.0,0.00015752,2]
[338688210,1726873855076,-200.0,0.00015752,2]
[338688211,1726873855085,-500.0,0.00015752,2]
[338688212,1726873855094,-786.54,0.00015752,2]
[338688213,1726873855103,-181.212739,0.00015752,2]
[338688214,1726873855112,-181.212739,0.00015752,2]
[338688215,1726873855121,-151.0,0.00015752,2]
[338688216,1726873855131,-1000.0,0.00015752,2]
[338688217,1726873855140,-1000.0,0.00015752,2]
[338688218,1726873855151,-1000.0,0.00015752,2]
[338688219,1726873855160,-1000.0,0.00015752,2]
[338688220,1726873855170,-1000.0,0.00015752,2]
[338688221,1726873855179,-1000.0,0.00015752,2]
[338688222,1726873855188,-1000.0,0.00015752,2]
[338688223,1726873855197,-1000.0,0.00015752,2]
[338688224,1726873855206,-1000.0,0.00015752,2]
[338688225,1726873855218,-1000.0,0.00015752,2]
[338688226,1726873855228,-1000.0,0.00015752,2]
[338688227,1726873855237,-1000.0,0.00015752,2]
[338688228,1726873855246,-1000.0,0.00015752,2]
[338688229,1726873855256,-1000.0,0.00015752,2]
[338688230,1726873855267,-1000.0,0.00015752,2]
[338688231,1726873855278,-1000.0,0.00015752,2]
[338688232,1726873855288,-1000.0,0.00015752,2]
[338688233,1726873855299,-329.03839238,0.00015752,2]
[338688234,1726873855477,-670.96160762,0.00015752,2]
[338688235,1726873855487,-1000.0,0.00015752,2]
[338688236,1726873855496,-778.948818,0.00015752,2]
[338688237,1726873855505,-151.0,0.00015752,2]
[338688238,1726873855514,-151.0,0.00015752,2]
[338688239,1726873855522,-449.326538,0.00015752,2]
[338688240,1726873855531,-449.326538,0.00015752,2]
[338688241,1726873855540,-151.0,0.00015752,2]
[338688242,1726873855552,-227.061917,0.00015752,2]
[338688243,1726873855562,-571.635939,0.00015752,2]
[338688244,1726873855573,-571.635939,0.00015752,2]
[338688245,1726873855583,-657.843271,0.00015752,2]
[338688246,1726873855593,-657.843271,0.00015752,2]
[338688247,1726873855604,-912.723033,0.00015752,2]
[338688248,1726873855615,-912.723033,0.00015752,2]
[338688249,1726873855626,-592.43489178,0.00015753,2]
[338688250,1726873855636,-500.0,0.00015753,2]
[338688251,1726873855647,-500.0,0.00015753,2]
[338688252,1726873855656,-500.0,0.00015753,2]
[338688253,1726873855668,-500.0,0.00015753,2]
[338688254,1726873855677,-500.0,0.00015753,2]
[338688255,1726873855688,-500.0,0.00015753,2]
[338688256,1726873855698,-926.63,0.00015753,2]
[338688257,1726873855709,-500.0,0.00015753,2]
[338688258,1726873855719,-500.0,0.00015753,2]
[338688259,1726873855728,-650.02,0.00015753,2]
[338688260,1726873855738,-591.58,0.00015753,2]
[338688261,1726873855748,-500.0,0.00015753,2]
[338688262,1726873855759,-627.74,0.00015753,2]
[338688263,1726873855769,-500.0,0.00015753,2]
[338688264,1726873855779,-504.08,0.00015753,2]
[338688265,1726873855791,-643.87,0.00015753,2]
[338688266,1726873855802,-188.65628345,0.00015753,2]
[338688267,1726873855813,-500.0,0.00015753,2]
[338688268,1726873855822,-500.0,0.00015753,2]
[338688269,1726873855831,-500.0,0.00015753,2]
[338688270,1726873855840,-500.0,0.00015753,2]
[338688271,1726873855849,-456.12926054,0.00015753,2]
[338688272,1726873855934,-500.0,0.00014372,2]
[338688273,1726873855943,-429.76,0.00014646,2]
[338688287,1726874122603,2295.0360698,0.00013699,2]
[338688288,1726874192109,5000.0,0.0001404,2]
[338688289,1726874199853,5000.0,0.0001404,2]
[338688290,1726874216567,500.0,0.00011781,2]
[338688291,1726874278254,233.486777,0.00013471,2]
[338688294,1726874351814,3000.0,0.00013364,2]
[338688311,1726874396691,2386.0,0.00014,2]
[338688312,1726874407752,2000.0,0.00014,2]
[338688313,1726874416568,2000.0,0.00014,2]
[338688323,1726874760755,500.0,0.00011781,2]
[338688324,1726874854125,233.486777,0.00013436,2]
[338688327,1726874897824,10093.73638056,0.000125,2]
[338688328,1726874900327,2149.92145904,0.0001,2]
[338688329,1726874919958,10551.87483603,0.00014,2]
[338688330,1726874920345,11556.34026891,0.0001,2]
[338688331,1726874921983,26748.19439855,0.000129,2]
[338688419,1726875038744,-898.78971019,0.0001428,2]
[338688420,1726875038757,-177.21142421,0.0001428,2]
[338688421,1726875038767,-300.0,0.0001435,2]
[338688422,1726875038776,-300.0,0.0001435,2]
[338688423,1726875038786,-1032.0012131,0.00014351,2]
[338688424,1726875038797,-11099.40570346,0.00014351,2]
[338688472,1726875040551,-32623.14103608,0.00014351,2]
[338688476,1726875040579,-6584.34823576,0.00014351,2]
[338688478,1726875040588,-11897.00497266,0.00014351,2]
[338688490,1726875040688,-26895.43141747,0.00014351,2]
[338688493,1726875040700,-25798.00634707,0.00014351,2]
[338688495,1726875040710,-500.0,0.00014352,2]
[338688497,1726875040719,-500.0,0.00014352,2]
[338688499,1726875040729,-502.83652898,0.00014352,2]
[338688501,1726875040738,-500.0,0.00014352,2]
[338688503,1726875040747,-500.0,0.00014352,2]
[338688505,1726875040757,-500.0,0.00014352,2]
[338688507,1726875040766,-500.0,0.00014352,2]
[338688508,1726875040775,-500.0,0.00014352,2]
[338688510,1726875040784,-1104.52,0.00014352,2]
[338688512,1726875040794,-500.0,0.00014352,2]
[338688514,1726875040803,-500.0,0.00014352,2]
[338688516,1726875040812,-532.18461076,0.00014352,2]
[338688518,1726875040823,-500.0,0.00014352,2]
[338688520,1726875040832,-500.0,0.00014352,2]
[338688522,1726875040841,-500.0,0.00014352,2]
[338688524,1726875040850,-500.0,0.00014352,2]
[338688526,1726875040859,-330.56,0.0001436,2]
[338688528,1726875040869,-402.61811148,0.0001436,2]
[338688530,1726875040878,-500.0,0.0001436,2]
[338688532,1726875040887,-500.0,0.0001436,2]
[338688535,1726875040902,-500.0,0.0001436,2]
[338688537,1726875040912,-500.0,0.0001436,2]
[338688539,1726875040921,-500.0,0.0001436,2]
[338688541,1726875040931,-500.0,0.0001436,2]
[338688543,1726875040940,-500.0,0.0001436,2]
[338688545,1726875040950,-500.0,0.0001436,2]
[338688547,1726875040960,-500.0,0.0001436,2]
[338688549,1726875040970,-500.0,0.0001436,2]
[338688551,1726875040979,-500.0,0.0001436,2]
[338688553,1726875040989,-300.41122799,0.0001436,2]
[338688555,1726875040999,-500.0,0.0001436,2]
[338688557,1726875041008,-500.0,0.0001436,2]
[338688559,1726875041018,-500.0,0.0001436,2]
[338688561,1726875041027,-788.3,0.0001436,2]
[338688563,1726875041037,-500.0,0.0001436,2]
[338688565,1726875041046,-500.0,0.0001436,2]
[338688568,1726875041056,-500.0,0.0001436,2]
[338688570,1726875041066,-500.0,0.0001436,2]
[338688572,1726875041076,-500.0,0.0001436,2]
[338688574,1726875041085,-500.0,0.0001436,2]
[338688576,1726875041095,-500.0,0.0001436,2]
[338688578,1726875041104,-500.0,0.0001436,2]
[338688580,1726875041113,-500.0,0.0001436,2]
[338688582,1726875041123,-500.0,0.0001436,2]
[338688584,1726875041132,-500.0,0.0001436,2]
[338688585,1726875041142,-500.0,0.0001436,2]
[338688587,1726875041151,-500.0,0.0001436,2]
[338688589,1726875041161,-537.9,0.0001436,2]
[338688591,1726875041170,-500.0,0.0001436,2]
[338688593,1726875041181,-738.02,0.0001436,2]
[338688595,1726875041190,-500.0,0.0001436,2]
[338688597,1726875041199,-500.0,0.0001436,2]
[338688599,1726875041208,-210.25894264,0.0001436,2]
[338688601,1726875041218,-500.0,0.0001436,2]
[338688603,1726875041227,-500.0,0.0001436,2]
[338688605,1726875041237,-321.3,0.0001436,2]
[338688607,1726875041246,-500.0,0.0001436,2]
[338688609,1726875041255,-500.0,0.0001436,2]
[338688611,1726875041264,-503.47656224,0.0001436,2]
[338688613,1726875041274,-500.0,0.0001436,2]
[338688614,1726875041284,-500.0,0.0001436,2]
[338688616,1726875041294,-533.95,0.0001436,2]
[338688618,1726875041304,-500.0,0.0001436,2]
[338688620,1726875041313,-17963.99,0.0001436,2]
[338688621,1726875041323,-500.0,0.0001436,2]
[338688623,1726875041333,-500.0,0.0001436,2]
[338688625,1726875041342,-500.0,0.0001436,2]
[338688626,1726875041352,-2785.4,0.0001436,2]
[338688628,1726875041361,-500.0,0.0001436,2]
[338688630,1726875041371,-500.0,0.0001436,2]
[338688632,1726875041380,-500.0,0.0001436,2]
[338688633,1726875041390,-500.0,0.0001436,2]
[338688635,1726875041399,-500.0,0.0001436,2]
[338688637,1726875041408,-500.0,0.0001436,2]
[338688639,1726875041418,-387.28,0.0001436,2]
[338688640,1726875041427,-1219.13,0.0001436,2]
[338688641,1726875041437,-500.0,0.0001436,2]
[338688642,1726875041447,-500.0,0.0001436,2]
[338688643,1726875041456,-500.0,0.0001436,2]
[338688644,1726875041465,-500.0,0.0001436,2]
[338688645,1726875041475,-500.0,0.0001436,2]
[338688646,1726875041484,-391.25814725,0.0001436,2]
[338688647,1726875041494,-500.0,0.0001436,2]
[338688648,1726875041503,-500.0,0.0001436,2]
[338688649,1726875041516,-500.0,0.0001436,2]
[338688650,1726875041526,-500.0,0.0001436,2]
[338688651,1726875041536,-500.0,0.0001436,2]
[338688652,1726875041545,-449.51298724,0.0001436,2]
[338688653,1726875041555,-500.0,0.0001436,2]
[338688654,1726875041565,-500.0,0.0001436,2]
[338688655,1726875041575,-500.0,0.0001436,2]
[338688656,1726875041584,-500.0,0.0001436,2]
[338688657,1726875041594,-500.0,0.0001436,2]
[338688658,1726875041603,-500.0,0.0001436,2]
[338688659,1726875041612,-232.52,0.0001436,2]
[338688660,1726875041622,-500.0,0.0001436,2]
[338688661,1726875041631,-500.0,0.0001436,2]
[338688662,1726875041641,-500.0,0.0001436,2]
[338688663,1726875041651,-544.07,0.0001436,2]
[338688664,1726875041662,-500.0,0.0001436,2]
[338688665,1726875041673,-389.34,0.0001436,2]
[338688666,1726875041686,-19183.16181151,0.00014361,2]
[338688667,1726875041706,-3885.16520325,0.00014361,2]
[338688668,1726875041720,-5255.27758816,0.00014361,2]
[338688669,1726875041735,-49238.93511408,0.00014361,2]
[338688680,1726875043658,-500.0,0.0001435,2]
[338688681,1726875043672,-500.0,0.0001435,2]
[338688682,1726875043683,-500.0,0.00014352,2]
[338688683,1726875043693,-2393.69997544,0.00014361,2]
[338688684,1726875043744,-1212.98751859,0.00014361,2]
[338688685,1726875043758,-10134.30274664,0.00014361,2]
[338688688,1726875046625,-320.0,0.0001435,2]
[338688693,1726875303271,500.0,0.00011781,2]
[338688695,1726875485720,114954.0891095,0.00014,2]
[338688712,1726875698241,2031.25706,0.00013699,2]
[338688719,1726876067591,500.0,0.00011781,2]
[338688746,1726876226302,1354.171373,0.00013699,2]
[338688747,1726876230618,7139.2745635,0.00013991,2]
[338688764,1726876232664,-150.112233,0.000143,2]
[338688765,1726876232673,-300.0,0.00014329,2]
[338688766,1726876232682,-234.81619995,0.00014329,2]
[338688861,1726876240777,-65.18380005,0.00014329,2]
[338688862,1726876240787,-291382.263396,0.0001433,2]
[338688863,1726876240799,-72845.565849,0.00014331,2]
[338688864,1726876240809,-57446.2390822,0.00014332,2]
[338688865,1726876240818,-521.59,0.00014337,2]
[338688866,1726876240828,-500.0,0.00014337,2]
[338688867,1726876240838,-500.0,0.00014337,2]
[338688868,1726876240848,-1343.2,0.00014337,2]
[338688869,1726876240858,-500.0,0.00014337,2]
[338688870,1726876240867,-155.23597121,0.00014337,2]
[338688871,1726876240877,-360.29514593,0.00014337,2]
[338688872,1726876240888,-500.0,0.00014337,2]
[338688873,1726876240897,-500.0,0.00014337,2]
[338688874,1726876240909,-500.0,0.00014337,2]
[338688875,1726876240920,-500.0,0.00014337,2]
[338688876,1726876240934,-405.75427698,0.00014337,2]
[338688877,1726876240945,-500.0,0.00014337,2]
[338688878,1726876240955,-500.0,0.00014337,2]
[338688879,1726876240965,-500.0,0.00014337,2]
[338688880,1726876240975,-409.30725823,0.00014337,2]
[338688881,1726876240986,-500.0,0.00014337,2]
[338688882,1726876240996,-180.0,0.00014338,2]
[338688883,1726876241007,-476.64480883,0.00014338,2]
[338688884,1726876241018,-500.0,0.00014338,2]
[338688885,1726876241029,-500.0,0.00014338,2]
[338688886,1726876241040,-500.0,0.00014338,2]
[338688887,1726876241052,-500.0,0.00014338,2]
[338688888,1726876241062,-500.0,0.00014338,2]
[338688889,1726876241072,-500.0,0.00014338,2]
[338688890,1726876241083,-500.0,0.00014338,2]
[338688891,1726876241095,-500.0,0.00014338,2]
[338688892,1726876241106,-500.0,0.00014338,2]
[338688893,1726876241116,-688.11,0.00014338,2]
[338688894,1726876241128,-500.0,0.00014338,2]
[338688895,1726876241140,-500.0,0.00014338,2]
[338688896,1726876241151,-500.0,0.00014338,2]
[338688897,1726876241161,-500.0,0.00014338,2]
[338688898,1726876241171,-501.86708346,0.00014338,2]
[338688899,1726876241181,-500.0,0.00014338,2]
[338688900,1726876241376,-500.0,0.00014338,2]
[338688901,1726876241387,-500.0,0.00014338,2]
[338688902,1726876241397,-300.49662093,0.00014338,2]
[338688903,1726876241407,-500.0,0.00014338,2]
[338688904,1726876241418,-500.0,0.00014338,2]
[338688905,1726876241427,-500.0,0.00014338,2]
[338688906,1726876241438,-545.04,0.00014338,2]
[338688907,1726876241447,-500.0,0.00014338,2]
[338688908,1726876241456,-500.0,0.00014338,2]
[338688909,1726876241467,-500.0,0.00014338,2]
[338688910,1726876241477,-500.0,0.00014338,2]
[338688911,1726876241487,-500.0,0.00014338,2]
[338688912,1726876241497,-500.0,0.00014338,2]
[338688913,1726876241507,-500.0,0.00014338,2]
[338688914,1726876241516,-561.2877269,0.00014338,2]
[338688915,1726876241525,-500.0,0.00014338,2]
[338688916,1726876241534,-500.0,0.00014338,2]
[338688917,1726876241545,-500.0,0.00014338,2]
[338688918,1726876241553,-491.5,0.00014338,2]
[338688919,1726876241564,-500.0,0.00014338,2]
[338688920,1726876241573,-500.0,0.00014338,2]
[338688921,1726876241584,-500.0,0.00014338,2]
[338688922,1726876241596,-500.0,0.00014338,2]
[338688923,1726876241606,-500.0,0.00014338,2]
[338688924,1726876241616,-500.0,0.00014338,2]
[338688925,1726876241626,-500.0,0.00014338,2]
[338688926,1726876241637,-500.0,0.00014338,2]
[338688927,1726876241647,-446.66185204,0.00014338,2]
[338688928,1726876241657,-500.0,0.00014338,2]
[338688929,1726876241669,-500.0,0.00014338,2]
[338688930,1726876241679,-500.0,0.00014338,2]
[338688931,1726876241689,-500.0,0.00014338,2]
[338688932,1726876241699,-500.0,0.00014338,2]
[338688933,1726876241709,-500.0,0.00014338,2]
[338688934,1726876241719,-500.0,0.00014338,2]
[338688935,1726876241729,-500.0,0.00014338,2]
[338688936,1726876241738,-500.0,0.00014338,2]
[338688937,1726876241748,-500.0,0.00014338,2]
[338688938,1726876241757,-150.0,0.00014338,2]
[338688939,1726876241767,-500.0,0.00014338,2]
[338688940,1726876241777,-500.0,0.00014338,2]
[338688941,1726876241786,-500.0,0.00014338,2]
[338688942,1726876241796,-500.0,0.00014338,2]
[338688943,1726876241807,-277.20909129,0.00014338,2]
[338688944,1726876241816,-500.0,0.00014338,2]
[338688945,1726876241826,-500.0,0.00014338,2]
[338688946,1726876241835,-500.0,0.00014338,2]
[338688947,1726876241845,-500.0,0.00014338,2]
[338688948,1726876241855,-172338.717247,0.0001434,2]
[338688949,1726876241864,-57446.2390822,0.00014341,2]
[338688950,1726876241874,-196.66,0.00014342,2]
[338688951,1726876241883,-259.82,0.00014342,2]
[338688952,1726876241893,-181.73,0.00014342,2]
[338688953,1726876241901,-272.77,0.00014342,2]
[338688954,1726876241911,-500.0,0.00014342,2]
[338688955,1726876241920,-500.0,0.00014342,2]
[338688956,1726876241929,-500.0,0.00014342,2]
[338688957,1726876241938,-355.98,0.00014342,2]
[338688958,1726876241947,-962.67,0.00014342,2]
[338688959,1726876241958,-329.89,0.00014342,2]
[338688960,1726876241967,-500.0,0.00014342,2]
[338688961,1726876241977,-500.0,0.00014342,2]
[338688962,1726876241986,-500.0,0.00014342,2]
[338688963,1726876241996,-150.83,0.00014342,2]
[338688964,1726876242005,-500.0,0.00014342,2]
[338688965,1726876242014,-500.0,0.00014342,2]
[338688966,1726876242023,-500.0,0.00014342,2]
[338688967,1726876242033,-500.0,0.00014342,2]
[338688968,1726876242043,-500.0,0.00014342,2]
[338688969,1726876242054,-500.0,0.00014342,2]
[338688970,1726876242063,-500.0,0.00014342,2]
[338688971,1726876242074,-500.0,0.00014342,2]
[338688972,1726876242084,-500.0,0.00014342,2]
[338688973,1726876242095,-500.0,0.00014342,2]
[338688974,1726876242107,-500.0,0.00014342,2]
[338688975,1726876242117,-500.0,0.00014342,2]
[338688976,1726876242128,-528.13,0.00014342,2]
[338688977,1726876242137,-500.0,0.00014342,2]
[338688978,1726876242148,-500.0,0.00014342,2]
[338688979,1726876242158,-500.0,0.00014342,2]
[338688980,1726876242168,-500.0,0.00014342,2]
[338688981,1726876242179,-882.88,0.00014342,2]
[338688982,1726876242189,-21189.25,0.00014342,2]
[338688983,1726876242199,-619.65,0.00014342,2]
[338688984,1726876242209,-361.57,0.00014342,2]
[338688985,1726876242218,-3350.43,0.00014342,2]
[338688986,1726876242228,-500.0,0.00014342,2]
[338688987,1726876242237,-500.0,0.00014342,2]
[338688988,1726876242247,-176.63,0.00014342,2]
[338688989,1726876242257,-500.0,0.00014342,2]
[338688990,1726876242267,-500.0,0.00014342,2]